[Event "Titled Tuesday Blitz April 12 Early 2022"]
[White "Belozerov, Andrei"]
[Black "Winkels, Marcel"]
[WhiteFideId "4120213"]
[BlackFideId "1003887"]
[WhiteElo "2320"]
[BlackElo "1900"]
[Result "1-0"]
[Round "01"]
[TimeControl "180+1"]
[Date "2022.04.13"]
[WhiteClock "0:01:19"]
[BlackClock "0:00:01"]

1. e4 {[%clk 0:02:59]}  c5 {[%clk 0:02:58]} 2. Nf3 {[%clk 0:02:59]}  d6 {[%clk 0:02:58]} 3. d4 {[%clk 0:02:59]}  cxd4 {[%clk 0:02:59]} 4. Nxd4 {[%clk 0:03:00]}  Nf6 {[%clk 0:02:59]} 5. Nc3 {[%clk 0:03:00]}  a6 {[%clk 0:03:00]} 6. Be3 {[%clk 0:03:00]}  e5 {[%clk 0:02:59]} 7. Nb3 {[%clk 0:03:00]}  Be6 {[%clk 0:02:58]} 8. f3 {[%clk 0:03:00]}  h5 {[%clk 0:02:55]} 9. Nd5 {[%clk 0:02:59]}  Nxd5 {[%clk 0:02:44]} 10. exd5 {[%clk 0:02:59]}  Bf5 {[%clk 0:02:45]} 11. Bd3 {[%clk 0:02:59]}  Bxd3 {[%clk 0:02:43]} 12. Qxd3 {[%clk 0:03:00]}  Be7 {[%clk 0:02:43]} 13. O-O-O {[%clk 0:02:59]}  Nd7 {[%clk 0:02:42]} 14. Kb1 {[%clk 0:02:59]}  Rc8 {[%clk 0:02:41]} 15. Nd2 {[%clk 0:02:58]}  Nc5 {[%clk 0:02:33]} 16. Bxc5 {[%clk 0:02:57]}  Rxc5 {[%clk 0:02:31]} 17. g4 {[%clk 0:02:55]}  h4 {[%clk 0:02:25]} 18. Rhf1 {[%clk 0:02:49]}  O-O {[%clk 0:02:23]} 19. Ne4 {[%clk 0:02:48]}  Rc7 {[%clk 0:02:11]} 20. f4 {[%clk 0:02:48]}  exf4 {[%clk 0:01:57]} 21. Rxf4 {[%clk 0:02:47]}  Bg5 {[%clk 0:01:51]} 22. Rf5 {[%clk 0:02:47]}  Be7 {[%clk 0:01:42]} 23. Rdf1 {[%clk 0:02:43]}  g6 {[%clk 0:01:21]} 24. R5f3 {[%clk 0:02:40]}  Kg7 {[%clk 0:01:15]} 25. Qd4+ {[%clk 0:02:39]}  Kg8 {[%clk 0:01:09]} 26. Rf6 {[%clk 0:02:25]}  Qd7 {[%clk 0:01:01]} 27. Rxd6 {[%clk 0:02:17]}  Qc8 {[%clk 0:00:49]} 28. c3 {[%clk 0:02:10]}  Rd7 {[%clk 0:00:36]} 29. Rxd7 {[%clk 0:02:00]}  Qxd7 {[%clk 0:00:36]} 30. d6 {[%clk 0:02:00]}  Bd8 {[%clk 0:00:34]} 31. h3 {[%clk 0:01:59]}  Re8 {[%clk 0:00:28]} 32. Nc5 {[%clk 0:01:45]}  Qc6 {[%clk 0:00:23]} 33. d7 {[%clk 0:01:34]}  Rf8 {[%clk 0:00:22]} 34. Ne4 {[%clk 0:01:29]}  Bb6 {[%clk 0:00:16]} 35. Qd5 {[%clk 0:01:25]}  Qxd5 {[%clk 0:00:14]} 36. Nf6+ {[%clk 0:01:25]}  Kg7 {[%clk 0:00:14]} 37. Nxd5 {[%clk 0:01:26]}  Bd8 {[%clk 0:00:13]} 38. Re1 {[%clk 0:01:25]}  f5 {[%clk 0:00:12]} 39. gxf5 {[%clk 0:01:25]}  gxf5 {[%clk 0:00:12]} 40. Re8 {[%clk 0:01:24]}  b5 {[%clk 0:00:07]} 41. Kc2 {[%clk 0:01:24]}  a5 {[%clk 0:00:06]} 42. Kd3 {[%clk 0:01:24]}  b4 {[%clk 0:00:06]} 43. cxb4 {[%clk 0:01:23]}  axb4 {[%clk 0:00:06]} 44. a4 {[%clk 0:01:22]}  Kf7 {[%clk 0:00:04]} 45. Rxf8+ {[%clk 0:01:21]}  Kxf8 {[%clk 0:00:03]} 46. Kd4 {[%clk 0:01:21]}  Kf7 {[%clk 0:00:01]} 47. Ke5 {[%clk 0:01:21]}  Kg6 {[%clk 0:00:01]} 48. b3 {[%clk 0:01:19]} 1-0


[Site "https://www.chess.com"]

[Event "Titled Tuesday Blitz April 12 Early 2022"]
[White "Biletskiy, Danylo"]
[Black "Vianello, Enrico"]
[WhiteFideId "14155419"]
[BlackFideId "810738"]
[WhiteElo "2087"]
[BlackElo "2272"]
[Result "1-0"]
[Round "01"]
[TimeControl "180+1"]
[Date "2022.04.13"]
[WhiteClock "0:00:49"]
[BlackClock "0:00:11"]

1. e4 {[%clk 0:02:49]}  d6 {[%clk 0:02:59]} 2. d4 {[%clk 0:02:48]}  Nf6 {[%clk 0:02:58]} 3. Nc3 {[%clk 0:02:49]}  e5 {[%clk 0:02:57]} 4. dxe5 {[%clk 0:02:48]}  dxe5 {[%clk 0:02:58]} 5. Qxd8+ {[%clk 0:02:48]}  Kxd8 {[%clk 0:02:59]} 6. Bg5 {[%clk 0:02:48]}  Be6 {[%clk 0:02:59]} 7. O-O-O+ {[%clk 0:02:49]}  Nd7 {[%clk 0:02:58]} 8. f3 {[%clk 0:02:46]}  Kc8 {[%clk 0:02:54]} 9. Nge2 {[%clk 0:02:25]}  a6 {[%clk 0:02:52]} 10. Ng3 {[%clk 0:02:06]}  h6 {[%clk 0:02:46]} 11. Be3 {[%clk 0:02:05]}  Bc5 {[%clk 0:02:39]} 12. Bxc5 {[%clk 0:02:04]}  Nxc5 {[%clk 0:02:38]} 13. Nd5 {[%clk 0:02:01]}  Nxd5 {[%clk 0:02:22]} 14. exd5 {[%clk 0:02:02]}  Bd7 {[%clk 0:02:23]} 15. a3 {[%clk 0:02:01]}  b5 {[%clk 0:02:08]} 16. Be2 {[%clk 0:01:58]}  Nb7 {[%clk 0:02:08]} 17. c4 {[%clk 0:01:43]}  bxc4 {[%clk 0:01:55]} 18. Bxc4 {[%clk 0:01:44]}  Nd6 {[%clk 0:01:55]} 19. Ba2 {[%clk 0:01:41]}  Kb7 {[%clk 0:01:44]} 20. Rhe1 {[%clk 0:01:40]}  f6 {[%clk 0:01:39]} 21. Ne4 {[%clk 0:01:40]}  Rhe8 {[%clk 0:01:33]} 22. Kb1 {[%clk 0:01:30]}  Bf5 {[%clk 0:01:27]} 23. Ka1 {[%clk 0:01:28]}  Bxe4 {[%clk 0:01:26]} 24. fxe4 {[%clk 0:01:29]}  Rab8 {[%clk 0:01:22]} 25. Rc1 {[%clk 0:01:23]}  Re7 {[%clk 0:01:21]} 26. Bc4 {[%clk 0:01:22]}  Rc8 {[%clk 0:01:02]} 27. Bd3 {[%clk 0:01:10]}  Nb5 {[%clk 0:00:49]} 28. Rc6 {[%clk 0:01:06]}  Rd7 {[%clk 0:00:45]} 29. Rec1 {[%clk 0:01:06]}  Rd6 {[%clk 0:00:39]} 30. a4 {[%clk 0:01:04]}  Nd4 {[%clk 0:00:29]} 31. Bxa6+ {[%clk 0:01:00]}  Kb8 {[%clk 0:00:28]} 32. Bxc8 {[%clk 0:00:58]}  Nxc6 {[%clk 0:00:27]} 33. Rxc6 {[%clk 0:00:53]}  Rxc6 {[%clk 0:00:17]} 34. dxc6 {[%clk 0:00:54]}  Kxc8 {[%clk 0:00:18]} 35. b4 {[%clk 0:00:50]}  g6 {[%clk 0:00:17]} 36. g4 {[%clk 0:00:50]}  Kb8 {[%clk 0:00:10]} 37. a5 {[%clk 0:00:49]}  Ka7 {[%clk 0:00:11]} 38. b5 {[%clk 0:00:49]} 1-0


[Site "https://www.chess.com"]

[Event "Titled Tuesday Blitz April 12 Early 2022"]
[White "Bongo Akanga Ndjila, Barthelemy"]
[Black "Janaszak, Dawid"]
[WhiteFideId "10609431"]
[BlackFideId "1119206"]
[WhiteElo "1768"]
[BlackElo "2199"]
[Result "0-1"]
[Round "01"]
[TimeControl "180+1"]
[Date "2022.04.13"]
[WhiteClock "0:00:44"]
[BlackClock "0:01:36"]

1. d4 {[%clk 0:02:58]}  Nf6 {[%clk 0:02:59]} 2. c4 {[%clk 0:02:57]}  g6 {[%clk 0:02:58]} 3. Nc3 {[%clk 0:02:56]}  Bg7 {[%clk 0:02:59]} 4. e4 {[%clk 0:02:56]}  d6 {[%clk 0:02:59]} 5. Be2 {[%clk 0:02:57]}  O-O {[%clk 0:02:57]} 6. Nf3 {[%clk 0:02:57]}  Bg4 {[%clk 0:02:52]} 7. Be3 {[%clk 0:02:51]}  Nc6 {[%clk 0:02:52]} 8. d5 {[%clk 0:02:49]}  Bxf3 {[%clk 0:02:49]} 9. Bxf3 {[%clk 0:02:48]}  Ne5 {[%clk 0:02:49]} 10. Be2 {[%clk 0:02:48]}  c5 {[%clk 0:02:49]} 11. f4 {[%clk 0:02:47]}  Ned7 {[%clk 0:02:49]} 12. O-O {[%clk 0:02:45]}  a6 {[%clk 0:02:49]} 13. Qd2 {[%clk 0:02:35]}  Rb8 {[%clk 0:02:47]} 14. a4 {[%clk 0:02:28]}  Qa5 {[%clk 0:02:48]} 15. g4 {[%clk 0:02:21]}  Ne8 {[%clk 0:02:39]} 16. g5 {[%clk 0:02:20]}  f6 {[%clk 0:02:38]} 17. h4 {[%clk 0:02:16]}  fxg5 {[%clk 0:02:34]} 18. hxg5 {[%clk 0:02:16]}  Nc7 {[%clk 0:02:32]} 19. Bg4 {[%clk 0:02:16]}  Rbd8 {[%clk 0:02:26]} 20. Kg2 {[%clk 0:02:13]}  Qb4 {[%clk 0:02:24]} 21. Be2 {[%clk 0:02:05]}  Nb6 {[%clk 0:02:21]} 22. a5 {[%clk 0:01:46]}  Nxc4 {[%clk 0:02:10]} 23. Bxc4 {[%clk 0:01:45]}  Qxc4 {[%clk 0:02:11]} 24. Ra4 {[%clk 0:01:31]}  Bxc3 {[%clk 0:02:11]} 25. Rxc4 {[%clk 0:01:31]}  Bxd2 {[%clk 0:02:11]} 26. Bxd2 {[%clk 0:01:32]}  e6 {[%clk 0:02:10]} 27. dxe6 {[%clk 0:01:26]}  Nxe6 {[%clk 0:02:09]} 28. f5 {[%clk 0:01:23]}  Nd4 {[%clk 0:02:00]} 29. f6 {[%clk 0:01:23]}  d5 {[%clk 0:01:53]} 30. exd5 {[%clk 0:01:21]}  Rxd5 {[%clk 0:01:52]} 31. Bc3 {[%clk 0:01:18]}  Rxg5+ {[%clk 0:01:51]} 32. Kh3 {[%clk 0:01:09]}  Rh5+ {[%clk 0:01:47]} 33. Kg4 {[%clk 0:01:07]}  Nf5 {[%clk 0:01:47]} 34. Kf3 {[%clk 0:00:53]}  Rh3+ {[%clk 0:01:37]} 35. Ke4 {[%clk 0:00:53]}  Ng3+ {[%clk 0:01:36]} 36. Kf3 {[%clk 0:00:44]}  Nxf1+ {[%clk 0:01:35]} 37. Kg2 {[%clk 0:00:44]}  Ne3+ {[%clk 0:01:35]} 38. Kxh3 {[%clk 0:00:44]}  Nxc4 {[%clk 0:01:36]} 0-1


[Site "https://www.chess.com"]

[Event "Titled Tuesday Blitz April 12 Early 2022"]
[White "Cagara, Paulina"]
[Black "Kouskoutis, Georgios-Alexandros"]
[WhiteFideId "1124870"]
[BlackFideId "4234049"]
[WhiteElo "1780"]
[BlackElo "2130"]
[Result "0-1"]
[Round "01"]
[TimeControl "180+1"]
[Date "2022.04.13"]
[WhiteClock "0:00:52"]
[BlackClock "0:00:10"]

1. e4 {[%clk 0:03:00]}  c5 {[%clk 0:03:00]} 2. Nc3 {[%clk 0:02:59]}  Nc6 {[%clk 0:02:56]} 3. Bb5 {[%clk 0:02:58]}  Nd4 {[%clk 0:02:51]} 4. Bc4 {[%clk 0:02:58]}  g6 {[%clk 0:02:36]} 5. Nf3 {[%clk 0:02:56]}  Bg7 {[%clk 0:02:36]} 6. Nxd4 {[%clk 0:02:56]}  cxd4 {[%clk 0:02:36]} 7. Qf3 {[%clk 0:02:56]}  Nh6 {[%clk 0:01:48]} 8. d3 {[%clk 0:02:53]}  O-O {[%clk 0:01:13]} 9. Ne2 {[%clk 0:02:50]}  e5 {[%clk 0:00:39]} 10. h3 {[%clk 0:02:47]}  Kh8 {[%clk 0:00:36]} 11. g4 {[%clk 0:02:38]}  d6 {[%clk 0:00:33]} 12. Ng3 {[%clk 0:02:31]}  Be6 {[%clk 0:00:30]} 13. Bd5 {[%clk 0:02:25]}  Bxd5 {[%clk 0:00:19]} 14. exd5 {[%clk 0:02:25]}  f5 {[%clk 0:00:11]} 15. gxf5 {[%clk 0:02:23]}  Nxf5 {[%clk 0:00:11]} 16. Ne4 {[%clk 0:02:08]}  Ne7 {[%clk 0:00:10]} 17. Qg3 {[%clk 0:02:00]}  Qa5+ {[%clk 0:00:09]} 18. Bd2 {[%clk 0:01:59]}  Qxd5 {[%clk 0:00:09]} 19. Rg1 {[%clk 0:01:53]}  Rac8 {[%clk 0:00:08]} 20. c4 {[%clk 0:01:48]}  dxc3 {[%clk 0:00:08]} 21. Bxc3 {[%clk 0:01:46]}  Nf5 {[%clk 0:00:08]} 22. Qf3 {[%clk 0:01:37]}  Nd4 {[%clk 0:00:06]} 23. Qg4 {[%clk 0:01:29]}  Nf3+ {[%clk 0:00:06]} 24. Ke2 {[%clk 0:01:26]}  Nxg1+ {[%clk 0:00:06]} 25. Rxg1 {[%clk 0:01:25]}  Qxa2 {[%clk 0:00:04]} 26. Ke3 {[%clk 0:01:13]}  Rxc3 {[%clk 0:00:04]} 27. bxc3 {[%clk 0:01:13]}  d5 {[%clk 0:00:04]} 28. Ng5 {[%clk 0:01:12]}  d4+ {[%clk 0:00:04]} 29. Ke4 {[%clk 0:01:08]}  Rf4+ {[%clk 0:00:04]} 30. Qxf4 {[%clk 0:01:08]}  exf4 {[%clk 0:00:05]} 31. cxd4 {[%clk 0:01:05]}  Qxf2 {[%clk 0:00:05]} 32. Rb1 {[%clk 0:01:00]}  Qe3+ {[%clk 0:00:04]} 33. Kd5 {[%clk 0:01:00]}  Qxd4+ {[%clk 0:00:04]} 34. Ke6 {[%clk 0:00:59]}  Qe5+ {[%clk 0:00:04]} 35. Kd7 {[%clk 0:00:56]}  Qxg5 {[%clk 0:00:04]} 36. Rxb7 {[%clk 0:00:55]}  Qd5+ {[%clk 0:00:03]} 37. Kc7 {[%clk 0:00:55]}  Qxb7+ {[%clk 0:00:04]} 38. Kxb7 {[%clk 0:00:54]}  f3 {[%clk 0:00:05]} 39. d4 {[%clk 0:00:55]}  f2 {[%clk 0:00:06]} 40. d5 {[%clk 0:00:55]}  f1=Q {[%clk 0:00:07]} 41. d6 {[%clk 0:00:56]}  Qb5+ {[%clk 0:00:07]} 42. Kc7 {[%clk 0:00:55]}  Be5 {[%clk 0:00:07]} 43. Kd8 {[%clk 0:00:54]}  Bxd6 {[%clk 0:00:08]} 44. h4 {[%clk 0:00:54]}  Qb7 {[%clk 0:00:08]} 45. h5 {[%clk 0:00:53]}  Qc7+ {[%clk 0:00:09]} 46. Ke8 {[%clk 0:00:52]}  Qe7# {[%clk 0:00:10]} 0-1


[Site "https://www.chess.com"]

[Event "Titled Tuesday Blitz April 12 Early 2022"]
[White "Calin, Alexandru"]
[Black "Kazakouski, Valery"]
[WhiteFideId "1222961"]
[BlackFideId "13507443"]
[WhiteElo "2455"]
[BlackElo "2849"]
[Result "0-1"]
[Round "01"]
[TimeControl "180+1"]
[Date "2022.04.13"]
[WhiteClock "0:00:51"]
[BlackClock "0:02:07"]

1. d4 {[%clk 0:03:00]}  Nf6 {[%clk 0:02:59]} 2. Bg5 {[%clk 0:03:00]}  e6 {[%clk 0:02:59]} 3. e4 {[%clk 0:03:00]}  h6 {[%clk 0:02:59]} 4. Bxf6 {[%clk 0:03:00]}  Qxf6 {[%clk 0:03:00]} 5. c3 {[%clk 0:03:01]}  d6 {[%clk 0:03:01]} 6. Bd3 {[%clk 0:02:58]}  Qg6 {[%clk 0:03:01]} 7. Qf3 {[%clk 0:02:53]}  e5 {[%clk 0:03:01]} 8. Ne2 {[%clk 0:02:50]}  Be7 {[%clk 0:03:01]} 9. Qg3 {[%clk 0:02:43]}  Qxg3 {[%clk 0:02:55]} 10. hxg3 {[%clk 0:02:44]}  O-O {[%clk 0:02:54]} 11. f4 {[%clk 0:02:40]}  c6 {[%clk 0:02:53]} 12. Nd2 {[%clk 0:02:36]}  Nd7 {[%clk 0:02:53]} 13. Nf3 {[%clk 0:02:35]}  Re8 {[%clk 0:02:52]} 14. O-O-O {[%clk 0:02:34]}  Bf8 {[%clk 0:02:52]} 15. dxe5 {[%clk 0:02:23]}  dxe5 {[%clk 0:02:52]} 16. f5 {[%clk 0:02:24]}  b5 {[%clk 0:02:51]} 17. g4 {[%clk 0:02:23]}  f6 {[%clk 0:02:50]} 18. a3 {[%clk 0:01:52]}  Bc5 {[%clk 0:02:49]} 19. Kb1 {[%clk 0:01:46]}  a5 {[%clk 0:02:47]} 20. Ka1 {[%clk 0:01:43]}  Nb6 {[%clk 0:02:43]} 21. Bb1 {[%clk 0:01:42]}  Bb7 {[%clk 0:02:39]} 22. Ba2+ {[%clk 0:01:43]}  Kf8 {[%clk 0:02:39]} 23. Nh4 {[%clk 0:01:42]}  Red8 {[%clk 0:02:38]} 24. Ng6+ {[%clk 0:01:41]}  Ke8 {[%clk 0:02:38]} 25. Kb1 {[%clk 0:01:36]}  Rxd1+ {[%clk 0:02:30]} 26. Rxd1 {[%clk 0:01:35]}  Rd8 {[%clk 0:02:31]} 27. Rxd8+ {[%clk 0:01:33]}  Kxd8 {[%clk 0:02:32]} 28. Ng3 {[%clk 0:01:30]}  Bf2 {[%clk 0:02:26]} 29. Nh5 {[%clk 0:01:30]}  c5 {[%clk 0:02:27]} 30. Nxg7 {[%clk 0:01:24]}  Bxe4+ {[%clk 0:02:27]} 31. Ka1 {[%clk 0:01:24]}  c4 {[%clk 0:02:27]} 32. Nh5 {[%clk 0:01:19]}  Nd5 {[%clk 0:02:26]} 33. g3 {[%clk 0:01:12]}  Bf3 {[%clk 0:02:24]} 34. Bb1 {[%clk 0:01:10]}  Bxg4 {[%clk 0:02:24]} 35. Be4 {[%clk 0:01:10]}  Bxh5 {[%clk 0:02:16]} 36. Bxd5 {[%clk 0:01:10]}  Bxg3 {[%clk 0:02:17]} 37. Bc6 {[%clk 0:01:04]}  Bg4 {[%clk 0:02:14]} 38. Bxb5 {[%clk 0:01:03]}  e4 {[%clk 0:02:14]} 39. Bxc4 {[%clk 0:00:59]}  e3 {[%clk 0:02:15]} 40. b4 {[%clk 0:00:59]}  e2 {[%clk 0:02:14]} 41. Bxe2 {[%clk 0:00:58]}  Bxe2 {[%clk 0:02:15]} 42. bxa5 {[%clk 0:00:57]}  h5 {[%clk 0:02:14]} 43. Kb2 {[%clk 0:00:54]}  Bd3 {[%clk 0:02:13]} 44. Nh8 {[%clk 0:00:51]}  Ke8 {[%clk 0:02:06]} 45. Kb3 {[%clk 0:00:51]}  h4 {[%clk 0:02:05]} 46. c4 {[%clk 0:00:51]}  h3 {[%clk 0:02:06]} 47. a6 {[%clk 0:00:52]}  h2 {[%clk 0:02:06]} 48. a7 {[%clk 0:00:51]}  h1=Q {[%clk 0:02:07]} 0-1


[Site "https://www.chess.com"]

[Event "Titled Tuesday Blitz April 12 Early 2022"]
[White "De Arruda, Leandro Formes"]
[Black "Tasev, Dejan"]
[WhiteFideId "22722009"]
[BlackFideId "936618"]
[WhiteElo "1852"]
[BlackElo "2253"]
[Result "0-1"]
[Round "01"]
[TimeControl "180+1"]
[Date "2022.04.13"]
[WhiteClock "0:01:01"]
[BlackClock "0:00:56"]

1. d4 {[%clk 0:02:59]}  Nf6 {[%clk 0:02:59]} 2. Nf3 {[%clk 0:02:59]}  e6 {[%clk 0:02:59]} 3. e3 {[%clk 0:03:00]}  b6 {[%clk 0:03:00]} 4. Bd3 {[%clk 0:03:01]}  Bb7 {[%clk 0:03:00]} 5. Nbd2 {[%clk 0:03:02]}  d6 {[%clk 0:02:59]} 6. O-O {[%clk 0:03:03]}  Nbd7 {[%clk 0:02:59]} 7. b3 {[%clk 0:03:03]}  g6 {[%clk 0:02:59]} 8. Bb2 {[%clk 0:03:04]}  Bg7 {[%clk 0:02:59]} 9. a4 {[%clk 0:03:04]}  a6 {[%clk 0:02:59]} 10. c4 {[%clk 0:03:02]}  O-O {[%clk 0:02:57]} 11. Qc2 {[%clk 0:03:01]}  c5 {[%clk 0:02:53]} 12. Rfe1 {[%clk 0:03:01]}  Qe7 {[%clk 0:02:51]} 13. Rad1 {[%clk 0:02:57]}  Rfd8 {[%clk 0:02:50]} 14. Bc3 {[%clk 0:02:53]}  a5 {[%clk 0:02:47]} 15. h3 {[%clk 0:02:52]}  Rac8 {[%clk 0:02:46]} 16. Nh2 {[%clk 0:02:50]}  d5 {[%clk 0:02:42]} 17. Ndf3 {[%clk 0:02:41]}  Ne4 {[%clk 0:02:34]} 18. Bxe4 {[%clk 0:02:38]}  dxe4 {[%clk 0:02:33]} 19. Nd2 {[%clk 0:02:36]}  f5 {[%clk 0:02:30]} 20. f3 {[%clk 0:02:12]}  Nf6 {[%clk 0:02:13]} 21. Rf1 {[%clk 0:02:00]}  exf3 {[%clk 0:02:06]} 22. Nhxf3 {[%clk 0:02:01]}  Ne4 {[%clk 0:02:05]} 23. Nxe4 {[%clk 0:01:54]}  Bxe4 {[%clk 0:02:04]} 24. Qb2 {[%clk 0:01:54]}  Bxf3 {[%clk 0:01:48]} 25. Rxf3 {[%clk 0:01:55]}  e5 {[%clk 0:01:44]} 26. d5 {[%clk 0:01:51]}  e4 {[%clk 0:01:42]} 27. Rff1 {[%clk 0:01:47]}  Bxc3 {[%clk 0:01:41]} 28. Qxc3 {[%clk 0:01:48]}  Qg7 {[%clk 0:01:40]} 29. Qd2 {[%clk 0:01:45]}  Rd6 {[%clk 0:01:37]} 30. Qf2 {[%clk 0:01:44]}  Qe5 {[%clk 0:01:36]} 31. Qh4 {[%clk 0:01:42]}  Rf8 {[%clk 0:01:33]} 32. Qf2 {[%clk 0:01:34]}  Kg7 {[%clk 0:01:29]} 33. g3 {[%clk 0:01:30]}  g5 {[%clk 0:01:27]} 34. Kg2 {[%clk 0:01:22]}  Rg6 {[%clk 0:01:22]} 35. Qd2 {[%clk 0:01:15]}  f4 {[%clk 0:01:18]} 36. exf4 {[%clk 0:01:12]}  gxf4 {[%clk 0:01:18]} 37. g4 {[%clk 0:01:04]}  f3+ {[%clk 0:01:15]} 38. Kg1 {[%clk 0:01:01]}  e3 {[%clk 0:00:56]} 0-1


[Site "https://www.chess.com"]

[Event "Titled Tuesday Blitz April 12 Early 2022"]
[White "De Silva, L M S T"]
[Black "Roman, Rodrigo"]
[WhiteFideId "9953698"]
[BlackFideId "3701220"]
[WhiteElo "1631"]
[BlackElo "2001"]
[Result "0-1"]
[Round "01"]
[TimeControl "180+1"]
[Date "2022.04.13"]
[WhiteClock "0:00:28"]
[BlackClock "0:00:07"]

1. e4 {[%clk 0:02:59]}  c5 {[%clk 0:02:53]} 2. Nf3 {[%clk 0:02:59]}  Nc6 {[%clk 0:02:50]} 3. Bb5 {[%clk 0:02:58]}  g6 {[%clk 0:02:49]} 4. O-O {[%clk 0:02:58]}  Bg7 {[%clk 0:02:47]} 5. c3 {[%clk 0:02:58]}  a6 {[%clk 0:02:47]} 6. Bxc6 {[%clk 0:02:57]}  dxc6 {[%clk 0:02:47]} 7. d4 {[%clk 0:02:57]}  cxd4 {[%clk 0:02:47]} 8. cxd4 {[%clk 0:02:58]}  Bg4 {[%clk 0:02:45]} 9. e5 {[%clk 0:02:58]}  Be6 {[%clk 0:02:43]} 10. Nc3 {[%clk 0:02:57]}  Bd5 {[%clk 0:02:40]} 11. Be3 {[%clk 0:02:52]}  h6 {[%clk 0:02:35]} 12. Nd2 {[%clk 0:02:48]}  e6 {[%clk 0:02:33]} 13. Nde4 {[%clk 0:02:46]}  Bf8 {[%clk 0:02:17]} 14. f4 {[%clk 0:02:36]}  Be7 {[%clk 0:02:13]} 15. g4 {[%clk 0:02:29]}  Bxe4 {[%clk 0:02:05]} 16. Nxe4 {[%clk 0:02:28]}  Qd5 {[%clk 0:02:06]} 17. Nc3 {[%clk 0:02:29]}  Qd7 {[%clk 0:02:05]} 18. Qc2 {[%clk 0:02:24]}  O-O-O {[%clk 0:01:56]} 19. f5 {[%clk 0:02:24]}  gxf5 {[%clk 0:01:52]} 20. gxf5 {[%clk 0:02:24]}  f6 {[%clk 0:01:47]} 21. Ne4 {[%clk 0:02:15]}  exf5 {[%clk 0:01:40]} 22. Rxf5 {[%clk 0:02:10]}  fxe5 {[%clk 0:01:30]} 23. dxe5 {[%clk 0:02:11]}  Kb8 {[%clk 0:01:23]} 24. Raf1 {[%clk 0:02:09]}  Rh7 {[%clk 0:01:15]} 25. Nc5 {[%clk 0:02:00]}  Rg7+ {[%clk 0:01:14]} 26. Kf2 {[%clk 0:01:54]}  Bxc5 {[%clk 0:00:56]} 27. Bxc5 {[%clk 0:01:54]}  Ne7 {[%clk 0:00:53]} 28. Bd6+ {[%clk 0:01:51]}  Ka8 {[%clk 0:00:52]} 29. Rf3 {[%clk 0:01:49]}  Nc8 {[%clk 0:00:42]} 30. Rd1 {[%clk 0:01:41]}  Qg4 {[%clk 0:00:38]} 31. Rg3 {[%clk 0:01:40]}  Qf4+ {[%clk 0:00:36]} 32. Kg2 {[%clk 0:01:40]}  Rxg3+ {[%clk 0:00:33]} 33. hxg3 {[%clk 0:01:41]}  Qg4 {[%clk 0:00:34]} 34. Rd3 {[%clk 0:01:34]}  Qe4+ {[%clk 0:00:32]} 35. Kh2 {[%clk 0:01:34]}  Nxd6 {[%clk 0:00:32]} 36. Qc3 {[%clk 0:01:24]}  Qe2+ {[%clk 0:00:29]} 37. Kh3 {[%clk 0:01:23]}  Qf1+ {[%clk 0:00:23]} 38. Kh2 {[%clk 0:01:23]}  Nf7 {[%clk 0:00:19]} 39. Rxd8+ {[%clk 0:01:20]}  Nxd8 {[%clk 0:00:20]} 40. Qd4 {[%clk 0:01:19]}  Qe2+ {[%clk 0:00:20]} 41. Kh3 {[%clk 0:01:17]}  Qh5+ {[%clk 0:00:19]} 42. Kg2 {[%clk 0:01:17]}  Qe8 {[%clk 0:00:19]} 43. Qd6 {[%clk 0:01:16]}  Ne6 {[%clk 0:00:19]} 44. b4 {[%clk 0:01:13]}  Qf7 {[%clk 0:00:20]} 45. a4 {[%clk 0:01:11]}  Nc7 {[%clk 0:00:20]} 46. Kg1 {[%clk 0:01:03]}  Nd5 {[%clk 0:00:19]} 47. a5 {[%clk 0:01:02]}  Qe7 {[%clk 0:00:18]} 48. Qxh6 {[%clk 0:01:02]}  Qxe5 {[%clk 0:00:17]} 49. Qf8+ {[%clk 0:01:02]}  Ka7 {[%clk 0:00:18]} 50. Qc5+ {[%clk 0:01:03]}  Kb8 {[%clk 0:00:15]} 51. Qf8+ {[%clk 0:01:03]}  Kc7 {[%clk 0:00:16]} 52. Qf7+ {[%clk 0:01:03]}  Ne7 {[%clk 0:00:16]} 53. Qf2 {[%clk 0:01:00]}  Nf5 {[%clk 0:00:15]} 54. Qb6+ {[%clk 0:01:00]}  Kc8 {[%clk 0:00:14]} 55. g4 {[%clk 0:00:59]}  Qg3+ {[%clk 0:00:14]} 56. Kf1 {[%clk 0:00:59]}  Qf4+ {[%clk 0:00:14]} 57. Ke2 {[%clk 0:00:57]}  Qxg4+ {[%clk 0:00:13]} 58. Kd3 {[%clk 0:00:55]}  Qf3+ {[%clk 0:00:13]} 59. Kd2 {[%clk 0:00:55]}  Qd5+ {[%clk 0:00:13]} 60. Kc3 {[%clk 0:00:54]}  Nd6 {[%clk 0:00:14]} 61. Qg1 {[%clk 0:00:47]}  Ne4+ {[%clk 0:00:13]} 62. Kc2 {[%clk 0:00:44]}  Qd2+ {[%clk 0:00:14]} 63. Kb3 {[%clk 0:00:44]}  Qd3+ {[%clk 0:00:13]} 64. Kb2 {[%clk 0:00:42]}  Qc3+ {[%clk 0:00:12]} 65. Ka2 {[%clk 0:00:42]}  Qxb4 {[%clk 0:00:07]} 66. Qg8+ {[%clk 0:00:42]}  Kd7 {[%clk 0:00:07]} 67. Qf7+ {[%clk 0:00:41]}  Qe7 {[%clk 0:00:06]} 68. Qh5 {[%clk 0:00:33]}  Qe6+ {[%clk 0:00:07]} 69. Ka1 {[%clk 0:00:33]}  Nd6 {[%clk 0:00:08]} 70. Qh8 {[%clk 0:00:29]}  Nf7 {[%clk 0:00:06]} 71. Qb8 {[%clk 0:00:28]}  Qe5+ {[%clk 0:00:07]} 0-1


[Site "https://www.chess.com"]